bitfinex/quotes_BTCUSD_20250331
["timestamp","ask_amount","ask_price","bid_price","bid_amount"]
[1743389637843,0.555498,82192.0,82191.0,0.08327784]
[1743389641107,0.555498,82192.0,82191.0,0.00747784]
[1743389641228,0.6630565,82192.0,82191.0,0.00647784]
[1743389641783,0.6630565,82192.0,82191.0,0.01047784]
[1743389641984,0.6630565,82192.0,82191.0,0.00847784]
[1743389642211,0.6630565,82192.0,82191.0,0.00647784]
[1743389642417,0.555498,82192.0,82191.0,0.00947784]
[1743389645376,0.3,82192.0,82191.0,0.02164384]
[1743389645506,0.3,82192.0,82191.0,0.08857784]
[1743389645906,0.312166,82192.0,82191.0,0.08857784]
[1743389646756,0.3,82192.0,82191.0,0.14724384]
[1743389646952,0.3,82192.0,82191.0,0.39057884]
[1743389647154,0.012164,82207.0,82198.0,0.012165]
[1743389647359,0.012165,82201.0,82193.0,0.012166]
[1743389647573,0.012166,82192.0,82191.0,0.13507784]
[1743389647961,0.312165,82197.0,82191.0,0.13507784]
[1743389648200,0.3,82201.0,82196.0,0.012166]
[1743389648433,0.3,82199.0,82194.0,0.255492]
[1743389648663,0.255482,82198.0,82193.0,0.255492]
[1743389648889,0.255482,82198.0,82191.0,0.13007784]
[1743389648890,0.012166,82195.0,82191.0,0.13007784]
[1743389649149,0.012166,82195.0,82191.0,0.13207784]
[1743389649326,0.012166,82196.0,82192.0,0.243332]
[1743389649859,0.3,82195.0,82191.0,0.14224384]
[1743389650731,0.3,82195.0,82194.0,0.002]
[1743389651617,0.33768096,82195.0,82194.0,0.002]
[1743389651804,0.255492,82194.0,82191.0,0.12507784]
[1743389652005,0.255498,82193.0,82191.0,0.12507784]
[1743389652219,0.012166,82192.0,82191.0,0.07857784]
[1743389652421,0.012166,82192.0,82191.0,0.08157784]
[1743389653761,0.012166,82192.0,82191.0,0.07857784]
[1743389653936,0.012166,82193.0,82191.0,0.08157784]
[1743389654152,0.255498,82192.0,82191.0,0.08657784]
[1743389654320,0.255498,82192.0,82191.0,0.08357784]
[1743389654485,0.255498,82192.0,82191.0,0.08657784]
[1743389654687,0.255498,82192.0,82191.0,0.08157784]
[1743389654894,0.255498,82192.0,82191.0,0.07857784]
[1743389655194,0.012166,82193.0,82191.0,0.08657784]
[1743389655397,0.012166,82193.0,82191.0,0.08357784]
[1743389655933,0.255498,82192.0,82191.0,0.08357784]
[1743389656537,0.34008823,82192.0,82191.0,0.005]
[1743389656743,0.64008823,82192.0,82191.0,0.008]
[1743389656967,0.64008823,82192.0,82191.0,0.003]
[1743389657347,0.64008823,82192.0,82191.0,0.007]
[1743389658006,0.64008823,82192.0,82191.0,0.003]
[1743389658581,0.555498,82192.0,82191.0,0.004]
[1743389660418,0.3,82192.0,82191.0,0.004]
[1743389661203,0.312166,82192.0,82191.0,0.004]
[1743389661759,0.3,82192.0,82191.0,0.004]
[1743389661957,0.543332,82192.0,82191.0,0.0043368]
[1743389662339,0.555498,82192.0,82191.0,0.0043368]
[1743389663349,0.66459534,82192.0,82191.0,0.0043368]
[1743389664203,0.555498,82192.0,82191.0,0.0043368]
[1743389664393,0.59066155,82192.0,82191.0,0.0043368]
[1743389665562,0.59066155,82192.0,82191.0,0.0013368]
[1743389665971,0.59066155,82192.0,82191.0,0.0003368]
[1743389666174,0.59066155,82192.0,82191.0,0.0013368]
[1743389666346,0.70327525,82192.0,82191.0,0.0013368]
[1743389670602,0.59066155,82192.0,82191.0,0.0013368]
[1743389670904,0.3,82192.0,82191.0,0.1266368]
[1743389671107,0.312166,82192.0,82191.0,0.1266368]
[1743389672476,0.3,82192.0,82191.0,0.1266368]
[1743389672684,0.312166,82192.0,82191.0,0.1266368]
[1743389672886,0.555498,82192.0,82191.0,0.1266368]
[1743389674440,0.57455856,82192.0,82191.0,0.1266368]
[1743389675224,0.57472696,82192.0,82191.0,0.1266368]
[1743389676630,0.31922896,82192.0,82191.0,0.1266368]
[1743389677033,0.3001684,82192.0,82191.0,0.1266368]
[1743389677256,0.3123344,82192.0,82191.0,0.1266368]
[1743389677686,0.3001684,82192.0,82191.0,0.1266368]
[1743389678690,0.3001684,82192.0,82191.0,0.2764368]
[1743389678895,0.3123344,82192.0,82191.0,0.2764368]
[1743389679151,0.3123344,82192.0,82191.0,0.1266368]
[1743389679330,0.3123344,82192.0,82191.0,0.0771368]
[1743389680042,0.33139528,82192.0,82191.0,0.0771368]
[1743389681723,0.33139528,82192.0,82191.0,0.0013368]
[1743389681926,0.36654125,82192.0,82191.0,0.0013368]
[1743389682535,0.33139528,82192.0,82191.0,0.0013368]
[1743389684584,0.03139528,82192.0,82191.0,0.0013368]
[1743389687203,0.0123344,82192.0,82191.0,0.0013368]
[1743389690012,0.03139618,82192.0,82191.0,0.0013368]
[1743389690795,0.33139618,82192.0,82191.0,0.0816368]
[1743389690997,0.33139618,82192.0,82191.0,0.0013368]
[1743389692027,0.02283737,82192.0,82191.0,0.0013368]
[1743389692454,0.04189884,82192.0,82191.0,0.0013368]
[1743389692627,0.05406484,82192.0,82191.0,0.0013368]
[1743389695580,0.43613526,82192.0,82191.0,0.0013368]
[1743389696759,0.35406484,82192.0,82191.0,0.0013368]
[1743389697140,0.33500337,82192.0,82191.0,0.0013368]
[1743389697360,0.312166,82192.0,82191.0,0.0013368]
[1743389698164,0.3123344,82192.0,82191.0,0.0013368]
[1743389698892,0.30588594,82192.0,82191.0,0.0013368]
[1743389699427,0.30588594,82192.0,82191.0,0.0003368]
[1743389700047,0.30588594,82192.0,82191.0,0.0013368]
[1743389700048,0.33636754,82192.0,82191.0,0.0013368]
[1743389703775,0.03065,82192.0,82191.0,0.13578007]
[1743389703991,0.042816,82192.0,82191.0,0.12361407]
[1743389704356,0.342816,82192.0,82191.0,0.12361407]
[1743389704541,0.342816,82192.0,82191.0,0.0773]
[1743389704940,0.555501,82191.0,82190.0,0.0003368]
[1743389705281,0.555501,82191.0,82190.0,0.00038381]
[1743389705516,0.67578583,82191.0,82190.0,0.00038381]
[1743389705720,0.555501,82191.0,82190.0,0.00038381]
[1743389706876,0.56692145,82191.0,82190.0,0.00038381]
[1743389707280,0.60206442,82191.0,82190.0,0.00038381]
[1743389707511,0.555508,82189.0,82188.0,6.1e-07]
[1743389707746,0.555508,82189.0,82161.0,0.0813]
[1743389707747,0.012169,82175.0,82161.0,0.0813]
[1743389707963,0.555579,82166.0,82165.0,0.00047794]
[1743389708546,0.56699945,82166.0,82165.0,0.00047794]
[1743389708712,0.60216837,82166.0,82165.0,0.00047794]
[1743389709356,0.56699945,82166.0,82165.0,0.00047794]
[1743389709758,0.67481309,82166.0,82165.0,0.00047794]
[1743389709963,0.69882575,82166.0,82165.0,0.00047794]
[1743389710136,0.71789334,82166.0,82165.0,0.00047794]
[1743389710340,0.6100797,82166.0,82165.0,0.00047794]
[1743389710605,0.63303743,82166.0,82165.0,0.00047794]
[1743389710812,0.63303743,82166.0,82165.0,0.00147794]
[1743389711006,0.08962843,82166.0,82165.0,0.00147794]
[1743389711241,0.33303743,82166.0,82165.0,0.00147794]
[1743389711596,0.33303743,82166.0,82165.0,0.00347794]
[1743389712415,0.30902477,82166.0,82165.0,0.00347794]
[1743389714826,0.30902477,82166.0,82165.0,0.08267794]
[1743389715487,0.33178451,82166.0,82165.0,0.08267794]
[1743389717026,0.31271692,82166.0,82165.0,0.08267794]
[1743389718292,0.61271692,82166.0,82165.0,0.00347794]
[1743389720060,0.63178447,82166.0,82165.0,0.00347794]
[1743389721549,0.63195277,82166.0,82165.0,0.00347794]
[1743389723560,0.37637377,82166.0,82165.0,0.12807794]
[1743389723756,0.63195277,82166.0,82165.0,0.12807794]
[1743389724955,0.37637377,82166.0,82165.0,0.12807794]
[1743389725948,0.36709915,82166.0,82165.0,0.12807794]
[1743389726150,0.0480316,82166.0,82165.0,0.14024794]
[1743389726271,0.0480316,82166.0,82165.0,0.12807794]
[1743389728524,0.03434849,82166.0,82165.0,0.14024794]
[1743389729178,0.0534143,82166.0,82165.0,0.14024794]
[1743389737073,0.03434849,82166.0,82165.0,0.14024794]
[1743389738892,0.01158875,82166.0,82165.0,0.14024794]
[1743389739298,0.01158875,82166.0,82165.0,0.13824794]
[1743389739735,0.01158875,82166.0,82165.0,0.13724794]
[1743389739958,0.01158875,82166.0,82165.0,0.14124794]
[1743389740099,0.03065319,82166.0,82165.0,0.14124794]
[1743389740298,0.03065319,82166.0,82165.0,0.14424794]
[1743389742051,0.01923274,82166.0,82165.0,0.14424794]
[1743389744684,0.01923274,82166.0,82165.0,0.16122245]
[1743389744883,0.01923274,82166.0,82165.0,0.27907362]
[1743389745597,0.01923274,82166.0,82165.0,0.27607362]
[1743389745956,0.02023274,82166.0,82165.0,0.27707362]
[1743389746350,0.02023274,82166.0,82165.0,0.28307362]
[1743389747321,0.0011683,82166.0,82165.0,0.28307362]
[1743389748081,0.0011683,82166.0,82165.0,0.14824794]
[1743389748284,0.0011683,82166.0,82165.0,0.29352794]
[1743389749754,0.01256298,82166.0,82165.0,0.29352794]
[1743389750170,0.03162727,82166.0,82165.0,0.29352794]
[1743389751218,0.243367,82181.0,82175.0,0.25555]
[1743389751384,0.243357,82184.0,82176.0,0.012169]
[1743389751584,0.255533,82181.0,82176.0,0.012169]
[1743389751784,0.243371,82179.0,82175.0,0.25555]
[1743389751989,0.255539,82179.0,82173.0,0.243388]
[1743389752410,0.012168,82179.0,82173.0,0.255557]
[1743389754130,0.012168,82179.0,82175.0,0.002]
[1743389754545,0.012168,82179.0,82176.0,0.003]
[1743389756024,0.0123363,82179.0,82176.0,0.003]
[1743389756246,0.0001683,82179.0,82178.0,0.012168]
[1743389757387,0.0001683,82179.0,82177.0,0.0756]
[1743389758813,0.0001683,82179.0,82178.0,0.003]
[1743389759022,0.0001683,82179.0,82178.0,0.255542]
[1743389759752,0.0001683,82179.0,82178.0,0.305742]
[1743389760265,0.0001683,82179.0,82178.0,0.308742]
[1743389761415,0.01923123,82179.0,82178.0,0.308742]
[1743389763832,0.03065392,82179.0,82178.0,0.308742]
[1743389764469,0.08518997,82190.0,82184.0,0.25552]
[1743389764623,0.3,82191.0,82186.0,0.255516]
[1743389765020,0.01906274,82189.0,82186.0,0.255516]
[1743389765521,0.01906274,82189.0,82185.0,0.14404]
[1743389765522,0.03250279,82189.0,82185.0,0.14404]
[1743389765715,0.243368,82180.0,82178.0,0.004]
[1743389765916,0.012168,82179.0,82178.0,0.004]
[1743389766124,0.012168,82179.0,82178.0,0.14804]
[1743389766531,0.0312325,82179.0,82178.0,0.14804]
[1743389766982,0.0312325,82179.0,82178.0,0.14404]
[1743389767186,0.05407687,82179.0,82178.0,0.14404]
[1743389767513,0.03501237,82179.0,82178.0,0.14404]
[1743389767801,0.03501237,82179.0,82178.0,0.1443766]
[1743389768101,0.02284437,82179.0,82178.0,0.1443766]
[1743389768531,0.255536,82180.0,82178.0,0.1443766]
[1743389768713,0.255536,82180.0,82178.0,0.1483766]
[1743389768924,0.255536,82180.0,82178.0,0.1513766]
[1743389769774,0.31101049,82183.0,82178.0,0.0043366]
[1743389769947,0.31101049,82183.0,82178.0,0.0003366]
[1743389770176,0.01906399,82180.0,82178.0,0.0023366]
[1743389770594,0.01906399,82180.0,82179.0,0.012168]
[1743389772803,0.01906399,82180.0,82179.0,0.014168]
[1743389773263,0.01906399,82180.0,82179.0,0.096868]
[1743389773826,0.01906399,82180.0,82179.0,0.0847]
[1743389774024,0.01906399,82180.0,82179.0,0.005]
[1743389774025,0.05559311,82180.0,82179.0,0.005]
[1743389774227,0.46132882,82180.0,82179.0,0.005]
[1743389774857,0.37466391,82180.0,82179.0,0.005]
[1743389775188,0.33123199,82180.0,82179.0,0.002]
[1743389775325,0.3,82179.0,82178.0,0.0003366]
[1743389775740,0.312168,82179.0,82178.0,0.0003366]
[1743389776328,0.012169,82176.0,82167.0,0.255573]
[1743389776528,0.012169,82176.0,82168.0,0.01217]
[1743389777199,0.3,82177.0,82171.0,0.012169]
[1743389777400,0.31827113,82179.0,82175.0,0.012169]
[1743389777619,0.01827113,82179.0,82173.0,0.012169]
[1743389777921,0.03043913,82179.0,82173.0,0.0386947]
[1743389778362,0.012168,82177.0,82173.0,0.0386947]
[1743389778581,0.012169,82176.0,82172.0,0.0827]
[1743389778808,0.012169,82175.0,82174.0,0.15132]
[1743389779826,0.012169,82173.0,82172.0,0.0837]
[1743389780028,0.25556,82172.0,82166.0,0.0827]
[1743389780220,0.255569,82170.0,82167.0,0.15112]
[1743389780554,0.012169,82172.0,82167.0,0.15112]
[1743389780752,0.012169,82172.0,82165.0,0.00047794]
[1743389780753,0.255579,82166.0,82165.0,0.00047794]
[1743389781143,0.555579,82166.0,82165.0,0.00047794]
[1743389781544,0.57464645,82166.0,82165.0,0.00047794]
[1743389782155,0.58372065,82166.0,82165.0,0.00047794]
[1743389782362,0.70400548,82166.0,82165.0,0.00047794]
[1743389782770,0.73920953,82166.0,82165.0,0.00047794]
[1743389783362,0.73920953,82166.0,82165.0,0.00147794]
[1743389783559,0.73920953,82166.0,82165.0,0.00247794]
[1743389784330,0.70400548,82166.0,82165.0,0.00247794]
[1743389784716,0.58372065,82166.0,82165.0,0.00247794]
[1743389787169,0.5646532,82166.0,82165.0,0.00247794]
[1743389789516,0.01217,82167.0,82165.0,0.15347794]
[1743389789517,0.255577,82167.0,82165.0,0.15347794]
[1743389789776,0.01217,82166.0,82165.0,0.15347794]
[1743389789981,0.012168,82179.0,82166.0,0.243409]
[1743389790237,0.012168,82179.0,82165.0,0.15347794]
[1743389790238,0.255549,82176.0,82167.0,0.05540279]
[1743389790449,0.012169,82176.0,82169.0,0.01217]
[1743389790641,0.03123468,82174.0,82166.0,0.01217]
[1743389790845,0.012169,82173.0,82166.0,0.01217]
[1743389791825,0.02829799,82174.0,82170.0,0.012169]
[1743389792029,0.02829799,82174.0,82173.0,0.012169]
[1743389792223,0.02829799,82174.0,82171.0,0.255561]
[1743389792467,0.01906568,82174.0,82173.0,0.243388]
[1743389792641,0.01906568,82174.0,82172.0,0.091969]
[1743389792801,0.01906568,82174.0,82172.0,0.0798]
[1743389794021,0.02006568,82174.0,82172.0,0.0798]
[1743389794227,0.02106568,82174.0,82172.0,0.0798]
[1743389794421,0.255557,82173.0,82172.0,0.0798]
[1743389795953,0.012169,82171.0,82166.0,0.0798]
[1743389796151,0.012169,82171.0,82167.0,0.15028]
[1743389797121,0.01217,82169.0,82167.0,0.15028]
[1743389797498,0.243403,82168.0,82167.0,0.15028]
[1743389797696,0.255573,82168.0,82167.0,0.15028]
[1743389798218,0.255573,82168.0,82167.0,0.15128]
[1743389798735,0.255573,82168.0,82149.0,0.049]
[1743389798736,0.3778867,82167.0,82149.0,0.049]
[1743389798869,0.25566,82140.0,82139.0,0.049]
[1743389799072,0.243501,82135.0,82132.0,0.16068]
[1743389799235,0.243509,82133.0,82131.0,0.00447124]
[1743389799600,0.243501,82135.0,82133.0,0.16072]
[1743389800161,0.012175,82134.0,82133.0,0.16072]
[1743389800365,0.05923321,82134.0,82133.0,0.24545512]
[1743389800536,0.08884981,82134.0,82133.0,0.1608]
[1743389801141,0.10792191,82134.0,82131.0,0.00447124]
[1743389801367,0.10792191,82134.0,82133.0,0.16696]
[1743389801771,0.10792191,82134.0,82133.0,0.24076]
[1743389802180,0.10792191,82134.0,82133.0,0.24676]
[1743389802375,0.12009691,82134.0,82133.0,0.24676]
[1743389802651,0.12009691,82134.0,82133.0,0.25176]
[1743389802830,0.12009691,82134.0,82133.0,0.25136]
[1743389803347,0.10792191,82134.0,82133.0,0.34507912]
[1743389803545,0.10792191,82134.0,82133.0,0.25136]
[1743389803976,0.10792191,82134.0,82133.0,0.0911366]
[1743389804181,0.10792191,82134.0,82133.0,0.2514166]
[1743389804382,0.12009691,82134.0,82133.0,0.2514166]
[1743389804966,0.12009691,82134.0,82133.0,0.2512566]
[1743389805349,0.12009691,82134.0,82133.0,0.2516966]
[1743389805730,0.12009691,82134.0,82133.0,0.0911366]
[1743389805935,0.0836457,82134.0,82133.0,0.2516166]
[1743389806326,0.0836457,82134.0,82133.0,0.2515766]
[1743389806929,0.0836457,82134.0,82133.0,0.2516166]
[1743389807132,0.0645736,82134.0,82133.0,0.2516166]
[1743389808500,0.0645736,82134.0,82133.0,0.0113366]
[1743389808801,0.0645736,82134.0,82133.0,0.1714566]
[1743389809907,0.0645736,82134.0,82133.0,0.1664566]
[1743389810285,0.08364591,82134.0,82133.0,0.1694566]
[1743389810628,0.08364591,82134.0,82133.0,0.1634566]
[1743389811077,0.08364591,82134.0,82133.0,0.1674566]
[1743389813437,0.06542031,82134.0,82133.0,0.1674566]
[1743389814193,0.05324531,82134.0,82133.0,0.1662966]
[1743389814409,0.05324531,82134.0,82133.0,0.2441966]
[1743389814910,0.29674931,82134.0,82133.0,0.2441966]
[1743389815141,0.05324531,82134.0,82133.0,0.2441966]
[1743389816918,0.07144858,82134.0,82133.0,0.2441966]
[1743389817119,0.05237627,82134.0,82133.0,0.2441966]
[1743389818107,0.277677,82134.0,82133.0,0.2441966]
[1743389819038,0.034173,82134.0,82133.0,0.2441966]
[1743389820288,0.05324475,82134.0,82133.0,0.2441966]
[1743389821143,0.07144638,82134.0,82133.0,0.2441966]
[1743389821725,0.31495038,82134.0,82133.0,0.0852366]
[1743389821928,0.68957773,82134.0,82133.0,0.0073366]
[1743389822157,0.72836843,82134.0,82133.0,0.0073366]
[1743389822725,0.555698,82128.0,82127.0,0.61670521]
[1743389823335,0.57848,82128.0,82127.0,0.61670521]
[1743389824629,0.57848,82128.0,82127.0,0.61870521]
[1743389824830,0.589871,82128.0,82127.0,0.61870521]
[1743389825472,0.589871,82128.0,82127.0,0.61970521]
[1743389826066,0.71015583,82128.0,82127.0,0.61970521]
[1743389827262,0.71015583,82128.0,82127.0,0.61770521]
[1743389827458,0.589871,82128.0,82127.0,0.61770521]
[1743389827674,0.635671,82128.0,82127.0,0.002]
[1743389827869,0.635671,82128.0,82108.0,0.0003368]
[1743389827870,0.555756,82109.0,82108.0,0.0003368]
[1743389828276,0.67604083,82109.0,82108.0,0.0003368]
[1743389828544,0.555756,82109.0,82108.0,0.0003368]
[1743389828916,0.578538,82109.0,82108.0,0.0003368]
[1743389829145,0.578538,82109.0,82108.0,0.0013368]
[1743389829313,0.57900622,82109.0,82108.0,0.0003368]
[1743389829514,0.59039722,82109.0,82108.0,0.0003368]
[1743389830142,0.60947709,82109.0,82108.0,0.0003368]
[1743389830517,0.61854242,82109.0,82108.0,0.0003368]
[1743389831525,0.59576042,82109.0,82108.0,0.0003368]
[1743389831695,0.34000442,82109.0,82108.0,0.0003368]
[1743389831902,0.33093909,82109.0,82108.0,0.0836368]
[1743389832109,0.03093909,82109.0,82108.0,0.0836368]
[1743389832522,0.10716948,82111.0,82108.0,0.0836368]
[1743389832723,0.255753,82110.0,82108.0,0.08368377]
[1743389832867,0.03125678,82109.0,82108.0,0.08368377]
[1743389833075,0.03125678,82109.0,82108.0,0.08568377]
[1743389833494,0.03125678,82109.0,82108.0,0.08368377]
[1743389833833,0.03125678,82109.0,82108.0,0.08568377]
[1743389834011,0.03125678,82109.0,82108.0,0.08668377]
[1743389834370,0.01907878,82109.0,82108.0,0.08668377]
[1743389834577,0.04186012,82109.0,82108.0,0.08668377]
[1743389835185,0.04186012,82109.0,82108.0,0.08568377]
[1743389835762,0.01907878,82109.0,82108.0,0.00238377]
[1743389836327,0.01907878,82109.0,82108.0,0.00438377]
[1743389837167,0.012178,82110.0,82108.0,0.00438377]
[1743389837662,0.0227797,82109.0,82108.0,0.00438377]
[1743389838244,0.0227797,82109.0,82108.0,0.00038377]
[1743389838444,0.0227797,82109.0,82108.0,0.00238377]
[1743389838653,0.0227797,82109.0,82102.0,0.012179]
[1743389838654,0.555778,82102.0,82101.0,0.004]
[1743389838824,0.555778,82102.0,82071.0,0.016184]
[1743389838825,0.555816,82090.0,82074.0,0.012184]
[1743389839091,0.555816,82090.0,82071.0,0.259874]
[1743389839311,0.555816,82090.0,82089.0,0.00080462]
[1743389839874,0.57325096,82090.0,82089.0,0.00080462]
[1743389840266,0.59233591,82090.0,82089.0,0.00080462]
[1743389842833,0.60134243,82090.0,82089.0,0.00080462]
[1743389845570,0.72162726,82090.0,82089.0,0.00080462]
[1743389846779,0.70254231,82090.0,82089.0,0.00080462]
[1743389847184,0.58225748,82090.0,82089.0,0.00080462]
[1743389848983,0.58325748,82090.0,82089.0,0.00080462]
[1743389849711,0.60234276,82090.0,82089.0,0.00080462]
[1743389857089,0.58325748,82090.0,82089.0,0.00080462]
[1743389860136,0.40021598,82090.0,82089.0,0.00080462]
[1743389860294,0.41239698,82090.0,82089.0,0.00080462]
[1743389860845,0.52915988,82090.0,82089.0,0.00080462]
[1743389861534,0.41239698,82090.0,82089.0,0.00080462]
[1743389866764,0.09331101,82090.0,82089.0,0.00080462]
[1743389869713,0.11239621,82090.0,82089.0,0.00080462]
[1743389873435,0.14775165,82090.0,82089.0,0.00080462]
[1743389874291,0.14775165,82090.0,82089.0,0.08220462]
[1743389875544,0.14675165,82090.0,82089.0,0.08220462]
[1743389876141,0.12766645,82090.0,82089.0,0.08220462]
[1743389876586,0.32644148,82090.0,82089.0,0.09045872]
[1743389876830,0.01743496,82090.0,82089.0,0.09045872]
[1743389877151,0.012181,82091.0,82089.0,0.08220462]
[1743389877351,0.0003366,82090.0,82089.0,0.08220462]
[1743389877556,0.27242968,82090.0,82089.0,0.08220462]
[1743389878437,0.02879468,82090.0,82089.0,0.08220462]
[1743389878592,0.01661368,82090.0,82089.0,0.13200462]
[1743389878808,0.0003366,82090.0,82089.0,0.17404022]
[1743389879008,0.01941986,82090.0,82089.0,0.42985922]
[1743389879213,0.01941986,82090.0,82089.0,0.38982362]
[1743389880047,0.01941986,82090.0,82089.0,0.38782362]
[1743389880402,0.01941986,82090.0,82089.0,0.38982362]
[1743389881789,0.01941986,82090.0,82089.0,0.38782362]
[1743389881911,0.01941986,82090.0,82089.0,0.39282362]
[1743389882442,0.01941986,82090.0,82089.0,0.54362362]
[1743389886461,0.0003366,82090.0,82089.0,0.54362362]
[1743389887140,0.0003366,82090.0,82089.0,0.28780462]
[1743389888083,0.0003366,82090.0,82089.0,0.53144262]
[1743389888435,0.0003366,82090.0,82089.0,0.54362362]
[1743389888958,0.0003366,82090.0,82089.0,0.29998562]
[1743389889681,0.01941938,82090.0,82089.0,0.29998562]
[1743389890715,0.01941938,82090.0,82089.0,0.28780462]
[1743389891688,0.01941938,82090.0,82089.0,0.28280462]
[1743389891896,0.01941938,82090.0,82089.0,0.28780462]
[1743389892336,0.01941938,82090.0,82089.0,0.13700462]
[1743389892492,0.01941938,82090.0,82089.0,0.28168462]
[1743389893126,0.01941938,82090.0,82089.0,0.29886562]
[1743389893328,0.01941938,82090.0,82089.0,0.29786562]
[1743389893486,0.01941938,82090.0,82089.0,0.41815045]
[1743389893681,0.01941938,82090.0,82089.0,0.41915045]
[1743389897164,0.0003366,82090.0,82089.0,0.41915045]
[1743389899942,0.0003366,82090.0,82089.0,0.29886562]
[1743389900181,0.0194179,82090.0,82089.0,0.29886562]
[1743389900501,0.0194179,82090.0,82089.0,0.29858562]
[1743389903761,0.255781,82102.0,82095.0,0.2558]
[1743389903961,0.243605,82101.0,82096.0,0.0267981]
[1743389904299,0.26268713,82101.0,82095.0,0.2558]
[1743389904606,0.27486713,82101.0,82095.0,0.2558]
[1743389905026,0.27486713,82101.0,82095.0,0.2568]
[1743389905531,0.27486713,82101.0,82095.0,0.2558]
[1743389905935,0.27486713,82101.0,82096.0,0.001]
[1743389906301,0.27486713,82101.0,82095.0,0.2568]
[1743389906661,0.26268713,82101.0,82096.0,0.01218]
[1743389907096,0.26268713,82101.0,82096.0,0.01318]
[1743389907305,0.243605,82101.0,82096.0,0.01318]
[1743389907507,0.243605,82101.0,82096.0,0.01218]
[1743389907965,0.01580552,82105.0,82097.0,0.1291646]
[1743389908166,0.255763,82107.0,82101.0,0.01218]
[1743389908167,0.3,82106.0,82101.0,0.01218]
[1743389908795,0.012178,82113.0,82107.0,0.243582]
[1743389909049,0.012178,82113.0,82106.0,0.012179]
[1743389909050,0.255747,82112.0,82108.0,0.14864]
[1743389909279,0.2560898,82111.0,82108.0,0.14864]
[1743389909517,0.255756,82109.0,82108.0,0.14864]
[1743389910398,0.27483647,82109.0,82108.0,0.14864]
[1743389910937,0.27483647,82109.0,82095.0,0.26755027]
[1743389910938,0.01218,82101.0,82096.0,0.63288]
[1743389911156,0.01218,82101.0,82099.0,0.1484]
[1743389911970,0.255785,82101.0,82099.0,0.1484]
[1743389912566,0.255785,82101.0,82099.0,0.1514]
[1743389912785,0.01218,82100.0,82099.0,0.003]
[1743389913064,0.01218,82100.0,82099.0,0.15432]
[1743389913611,0.03126195,82100.0,82099.0,0.15432]
[1743389913825,0.03126195,82100.0,82099.0,0.15132]
[1743389914058,0.03126195,82100.0,82099.0,0.006]
[1743389914305,0.03126195,82100.0,82099.0,0.15412]
[1743389914538,0.03126195,82100.0,82099.0,0.15112]
[1743389914759,0.03126195,82100.0,82099.0,0.15512]
[1743389915438,0.01908195,82100.0,82099.0,0.15512]
[1743389917175,0.255785,82101.0,82099.0,0.15512]
[1743389918175,0.255785,82101.0,82099.0,0.15112]
[1743389918351,0.255785,82101.0,82099.0,0.14812]
[1743389918551,0.555775,82104.0,82100.0,0.1086001]
[1743389919032,0.255778,82103.0,82100.0,0.1086001]
[1743389919639,0.012179,82103.0,82100.0,0.1086001]
[1743389919861,0.012179,82104.0,82100.0,0.002]
[1743389920067,0.01908142,82103.0,82099.0,0.15112]
[1743389920463,0.03126042,82103.0,82099.0,0.14812]
[1743389920663,0.03126042,82103.0,82100.0,0.003]
[1743389921188,0.03126042,82103.0,82099.0,0.391727]
[1743389921388,0.243599,82102.0,82099.0,0.14812]
[1743389921589,0.243599,82102.0,82099.0,0.15112]
[1743389921943,0.243599,82102.0,82100.0,0.002]
[1743389922337,0.243599,82102.0,82099.0,0.14812]
[1743389922555,0.243599,82102.0,82099.0,0.15012]
[1743389922989,0.243599,82102.0,82099.0,0.14812]
[1743389923190,0.243599,82102.0,82100.0,0.002]
[1743389923608,0.243599,82102.0,82099.0,0.14812]
[1743389923952,0.243599,82102.0,82099.0,0.15012]
[1743389924148,0.03126042,82103.0,82099.0,0.393728]
[1743389924358,0.01908142,82103.0,82102.0,0.081]
[1743389924790,0.01908142,82103.0,82102.0,0.093179]
[1743389925435,0.01908142,82103.0,82102.0,0.09561482]
[1743389925639,0.01908142,82103.0,82102.0,0.140779]
[1743389926554,0.01908142,82103.0,82102.0,0.142779]
[1743389926744,0.01908142,82103.0,82102.0,0.1764489]
[1743389927079,0.0003366,82106.0,82105.0,0.384369]
[1743389927321,0.0003366,82106.0,82105.0,0.51919468]
[1743389928339,0.0003366,82106.0,82105.0,0.384369]
[1743389928703,0.0003366,82106.0,82105.0,0.390369]
[1743389928910,0.0003366,82106.0,82105.0,0.51065383]
[1743389929328,0.0003366,82106.0,82105.0,0.51565383]
[1743389929990,0.01941442,82106.0,82105.0,0.51565383]
[1743389930621,0.01441442,82106.0,82105.0,0.51565383]
[1743389931798,0.243516,82130.0,82122.0,0.255714]
[1743389932002,0.255699,82128.0,82123.0,0.148]
[1743389932376,0.27075137,82128.0,82123.0,0.148]
[1743389932937,0.27075137,82128.0,82123.0,0.14814122]
[1743389933906,0.02722837,82128.0,82123.0,0.14814122]
[1743389934419,0.02722837,82128.0,82123.0,0.16031722]
[1743389934798,0.01505237,82128.0,82124.0,0.25571]
[1743389935042,0.01907728,82129.0,82124.0,0.35665622]
[1743389935202,0.01907728,82129.0,82124.0,0.25571]
[1743389935413,0.01907728,82129.0,82125.0,0.14756]
[1743389935821,0.0346638,82129.0,82125.0,0.14756]
[1743389936027,0.0346638,82129.0,82125.0,0.159736]
[1743389936405,0.0346638,82129.0,82127.0,0.243522]
[1743389936594,0.243522,82128.0,82125.0,0.14756]
[1743389937592,0.255698,82128.0,82125.0,0.14756]
[1743389937986,0.255698,82128.0,82125.0,0.14856]
[1743389939517,0.012176,82126.0,82125.0,0.001]
[1743389939677,0.012176,82126.0,82125.0,0.1482]
[1743389940184,0.0312533,82126.0,82125.0,0.1482]
[1743389940381,0.0312533,82126.0,82125.0,0.1472]
[1743389940779,0.0312533,82126.0,82125.0,0.1482]
[1743389941121,0.0190773,82126.0,82125.0,0.1482]
[1743389941499,0.2747813,82126.0,82125.0,0.1482]
[1743389941717,0.2747813,82126.0,82125.0,0.002]
[1743389943254,0.0190773,82126.0,82125.0,0.002]
[1743389943930,0.0312533,82126.0,82125.0,0.002]
[1743389945487,0.2747813,82126.0,82125.0,0.002]
[1743389945992,0.255704,82126.0,82125.0,0.002]
[1743389950127,0.5944947,82126.0,82125.0,0.002]
[1743389950352,0.6756947,82126.0,82125.0,0.0023364]
[1743389950973,0.6756947,82126.0,82125.0,0.0013364]
[1743389951174,0.636904,82126.0,82125.0,0.0003364]
[1743389951378,0.639904,82126.0,82125.0,0.0003364]